bitfinex/quotes_SOLUSD_20241225
["timestamp","ask_amount","ask_price","bid_price","bid_amount"]
[1735160663011,15.23707893,198.52,198.44,15.23707893]
[1735160663175,15.23707893,198.5,198.42,15.23707893]
[1735160663383,15.23707893,198.55,198.4,15.23707893]
[1735160663384,15.23707893,198.48,198.4,15.23707893]
[1735160663591,15.23707893,198.45,198.35,30.0]
[1735160663795,7.7452,198.49,198.37,15.23707893]
[1735160663991,15.23707893,198.47,198.39,15.23707893]
[1735160664194,15.23707893,198.46,198.39,15.23707893]
[1735160664403,15.23707893,198.46,198.38,15.23707893]
[1735160664715,15.23707893,198.48,198.41,15.23707893]
[1735160665012,15.23707893,198.48,198.4,15.23707893]
[1735160665597,15.23707893,198.48,198.41,15.23707893]
[1735160666810,15.23707893,198.48,198.4,45.23707893]
[1735160667699,15.23707893,198.51,198.43,15.23707893]
[1735160667888,15.23707893,198.53,198.45,15.23707893]
[1735160668603,15.23707893,198.55,198.47,15.23707893]
[1735160669402,15.23707893,198.55,198.48,30.0]
[1735160669901,15.23707893,198.55,198.48,45.23707893]
[1735160670210,15.23707893,198.56,198.49,0.12549]
[1735160670387,15.23707893,198.58,198.51,15.23707893]
[1735160670782,15.23707893,198.58,198.47,30.0]
[1735160670783,15.23707893,198.58,198.5,15.23707893]
[1735160671010,15.23707893,198.57,198.49,15.23707893]
[1735160672515,15.23707893,198.57,198.49,45.23707893]
[1735160672705,15.23707893,198.61,198.54,15.23707893]
[1735160673008,15.23707893,198.64,198.57,15.23707893]
[1735160673510,15.23707893,198.65,198.58,15.23707893]
[1735160674407,15.23707893,198.66,198.59,30.0]
[1735160674600,15.23707893,198.66,198.58,15.23707893]
[1735160674802,15.23707893,198.65,198.58,15.23707893]
[1735160674995,7.955,198.68,198.54,15.23707893]
[1735160674996,15.23707893,198.62,198.54,15.23707893]
[1735160675202,15.23707893,198.63,198.56,15.23707893]
[1735160675593,15.23707893,198.62,198.55,15.23707893]
[1735160675795,15.23707893,198.63,198.55,15.23707893]
[1735160676197,15.23707893,198.6,198.52,15.23707893]
[1735160676710,15.23707893,198.58,198.5,15.23707893]
[1735160676912,15.23707893,198.58,198.51,30.0]
[1735160677112,15.23707893,198.58,198.52,15.23707893]
[1735160681108,30.47415793,198.66,198.45,7.25832822]
[1735160681109,15.23707893,198.56,198.45,6.5029]
[1735160681412,15.23707893,198.56,198.48,15.23707893]
[1735160681608,15.23707893,198.58,198.5,15.23707893]
[1735160681791,15.23707893,198.56,198.49,15.23707893]
[1735160682496,15.23707893,198.56,198.47,15.23707893]
[1735160682689,15.23707893,198.54,198.47,15.23707893]
[1735160682895,15.23707893,198.54,198.46,15.23707893]
[1735160683615,15.23707893,198.55,198.47,15.23707893]
[1735160684228,15.23707893,198.57,198.49,15.23707893]
[1735160688018,15.23707893,198.55,198.47,15.23707893]
[1735160688317,15.23707893,198.55,198.47,45.23707893]
[1735160688621,15.23707893,198.53,198.47,15.23707893]
[1735160688799,15.23707893,198.51,198.43,15.23707893]
[1735160688995,15.23707893,198.48,198.41,15.23707893]
[1735160689214,15.23707893,198.48,198.4,15.23707893]
[1735160689391,15.23707893,198.47,198.4,15.23707893]
[1735160689591,15.23707893,198.45,198.38,15.23707893]
[1735160689795,15.23707893,198.44,198.37,15.23707893]
[1735160690017,15.23707893,198.39,198.31,37.87379173]
[1735160690314,15.23707893,198.38,198.31,23.11087066]
[1735160690504,15.23707893,198.37,198.31,7.87379173]
[1735160690693,15.23707893,198.38,198.3,15.23707893]
[1735160690891,15.23707893,198.32,198.29,38.95124697]
[1735160691093,15.23707893,198.31,198.23,15.23707893]
[1735160691295,15.23707893,198.3,198.22,53.11087066]
[1735160691511,15.23707893,198.29,198.22,23.11087066]
[1735160691718,15.23707893,198.28,198.22,7.87379173]
[1735160692018,15.23707893,198.29,198.22,23.11087066]
[1735160692321,15.23707893,198.29,198.21,15.23707893]
[1735160692499,15.23707893,198.28,198.2,15.23707893]
[1735160692704,15.23707893,198.27,198.2,15.23707893]
[1735160692906,15.23707893,198.27,198.19,15.23707893]
[1735160693107,15.23707893,198.26,198.18,15.23707893]
[1735160694295,24.45852722,198.26,198.18,24.45852722]
[1735160694810,24.45852722,198.27,198.2,24.45852722]
[1735160695626,24.45852722,198.26,198.18,54.45852722]
[1735160696427,24.45852722,198.26,198.18,24.45852722]
[1735160696598,24.45852722,198.23,198.15,24.45852722]
[1735160697223,24.45852722,198.19,198.11,55.21520232]
[1735160697409,24.45852722,198.19,198.11,24.45852722]
[1735160698610,24.45852722,198.15,198.07,24.45852722]
[1735160699495,24.45852722,198.15,198.05,54.45852722]
[1735160699700,24.45852722,198.13,198.07,24.45852722]
[1735160700721,24.45852722,198.13,198.05,24.45852722]
[1735160700925,24.45852722,198.11,198.03,24.45852722]
[1735160701102,24.45852722,198.09,198.03,24.45852722]
[1735160701303,24.45852722,198.09,198.01,24.45852722]
[1735160702004,24.45852722,198.13,198.05,24.45852722]
[1735160702207,24.45852722,198.06,197.99,30.0]
[1735160702520,24.45852722,198.03,197.95,24.45852722]
[1735160703017,24.45852722,198.01,197.94,38.46344052]
[1735160703235,24.45852722,198.01,197.93,24.45852722]
[1735160703619,24.45852722,198.03,197.95,24.45852722]
[1735160703802,24.45852722,198.01,197.93,24.45852722]
[1735160704204,24.45852722,198.01,197.95,24.45852722]
[1735160704411,24.45852722,197.97,197.89,30.95562722]
[1735160704636,24.45852722,197.97,197.89,24.45852722]
[1735160704919,24.45852722,197.99,197.91,24.45852722]
[1735160705117,24.45852722,197.98,197.9,24.45852722]
[1735160705325,24.45852722,197.96,197.88,54.45852722]
[1735160705829,24.45852722,197.92,197.84,24.45852722]
[1735160706131,24.45852722,197.92,197.83,6.4971]
[1735160706132,24.45852722,197.93,197.85,24.45852722]
[1735160706313,24.45852722,197.93,197.83,6.4971]
[1735160706314,24.45852722,197.91,197.83,24.45852722]
[1735160707823,24.45852722,197.9,197.82,24.45852722]
[1735160708015,24.45852722,197.88,197.8,24.45852722]
[1735160708329,24.45852722,197.9,197.82,54.45852722]
[1735160708543,24.45852722,197.87,197.8,25.21664106]
[1735160708826,12.6316,197.92,197.8,24.45852722]
[1735160708827,24.45852722,197.89,197.8,24.45852722]
[1735160708996,24.45852722,197.89,197.8,54.45852722]
[1735160709201,24.45852722,197.91,197.84,24.45852722]
[1735160709400,24.45852722,197.91,197.8,30.0]
[1735160709401,24.45852722,197.91,197.82,24.45852722]
[1735160709597,24.45852722,197.91,197.84,24.45852722]
[1735160709805,24.45852722,197.93,197.86,24.45852722]
[1735160710127,24.45852722,197.93,197.86,54.45852722]
[1735160710327,24.45852722,197.97,197.9,24.45852722]
[1735160710532,24.45852722,197.99,197.92,24.45852722]
[1735160711016,24.45852722,198.0,197.92,54.45852722]
[1735160711211,24.45852722,198.02,197.94,24.45852722]
[1735160711417,12.624,198.04,197.92,30.0]
[1735160711418,24.45852722,198.04,197.97,24.45852722]
[1735160711747,24.45852722,197.98,197.89,36.4971]
[1735160711922,24.45852722,197.95,197.89,6.4971]
[1735160712238,0.12549,198.05,197.81,36.4971]
[1735160712417,0.12549,198.05,197.83,30.0]
[1735160712816,23.902374,197.98,197.84,20.0]
[1735160713132,24.45852722,197.95,197.87,24.45852722]
[1735160713331,24.45852722,197.93,197.87,24.45852722]
[1735160713634,24.45852722,197.93,197.85,24.45852722]
[1735160714132,24.45852722,197.93,197.87,24.45852722]
[1735160714341,24.45852722,197.95,197.87,24.45852722]
[1735160715038,24.45852722,197.93,197.85,24.45852722]
[1735160717331,24.45852722,197.93,197.85,54.45852722]
[1735160717637,24.45852722,197.97,197.87,24.45852722]
[1735160717841,24.45852722,197.97,197.89,24.45852722]
[1735160718221,24.45852722,197.95,197.87,24.45852722]
[1735160719440,24.45852722,197.91,197.83,24.45852722]
[1735160719917,24.45852722,197.89,197.81,30.95562722]
[1735160720114,24.45852722,197.85,197.77,24.45852722]
[1735160720340,24.45852722,197.83,197.75,24.45852722]
[1735160721051,24.45852722,197.89,197.73,24.45852722]
[1735160721052,24.45852722,197.81,197.73,24.45852722]
[1735160721220,24.45852722,197.79,197.71,24.45852722]
[1735160722355,24.45852722,197.75,197.63,30.75852595]
[1735160722520,24.45852722,197.75,197.58,18.9026]
[1735160722521,24.45852722,197.75,197.66,24.45852722]
[1735160723345,24.45852722,197.77,197.7,24.45852722]
[1735160723529,24.45852722,197.79,197.7,24.45852722]
[1735160723731,24.45852722,197.79,197.72,24.45852722]
[1735160723939,24.45852722,197.82,197.73,24.45852722]
[1735160724327,24.45852722,197.8,197.73,24.45852722]
[1735160725456,24.45852722,197.8,197.71,24.45852722]
[1735160725633,24.45852722,197.8,197.71,54.45852722]
[1735160725838,24.45852722,197.8,197.73,24.45852722]
[1735160726537,44.45852722,197.82,197.73,24.45852722]
[1735160726740,24.45852722,197.82,197.73,24.45852722]
[1735160727443,24.45852722,197.81,197.74,24.45852722]
[1735160727631,24.45852722,197.8,197.73,24.45852722]
[1735160727936,24.45852722,197.78,197.7,30.70852722]
[1735160728123,24.45852722,197.79,197.71,24.45852722]
[1735160728323,24.45852722,197.79,197.73,24.45852722]
[1735160729549,24.45852722,197.81,197.73,24.45852722]
[1735160729953,24.45852722,197.81,197.71,24.45852722]
[1735160730250,24.45852722,197.81,197.73,24.45852722]
[1735160731234,24.45852722,197.83,197.75,24.45852722]
[1735160731432,24.45852722,197.83,197.77,24.45852722]
[1735160731628,24.45852722,197.83,197.75,24.45852722]
[1735160731828,24.45852722,197.77,197.7,24.45852722]
[1735160732033,24.45852722,197.77,197.68,24.45852722]
[1735160732235,24.45852722,197.75,197.68,24.45852722]
[1735160732534,24.45852722,197.78,197.7,24.45852722]
[1735160732730,24.45852722,197.76,197.7,24.45852722]
[1735160735962,24.45852722,197.76,197.68,24.45852722]
[1735160736333,23.902374,197.73,197.6,36.3366]
[1735160736547,24.45852722,197.68,197.6,24.45852722]
[1735160737574,24.45852722,197.67,197.59,24.45852722]
[1735160738139,24.45852722,197.68,197.6,24.45852722]
[1735160738568,24.45852722,197.67,197.59,24.45852722]
[1735160738773,24.45852722,197.68,197.6,24.45852722]
[1735160740698,24.45852722,197.64,197.57,24.45852722]
[1735160741004,24.45852722,197.64,197.56,26.02802722]
[1735160741170,24.45852722,197.63,197.56,24.45852722]
[1735160741360,24.45852722,197.61,197.54,24.45852722]
[1735160741559,24.45852722,197.61,197.52,30.0]
[1735160741560,24.45852722,197.6,197.53,24.45852722]
[1735160741765,24.45852722,197.61,197.53,24.45852722]
[1735160742001,24.45852722,197.61,197.54,24.45852722]
[1735160742190,24.45852722,197.6,197.52,24.45852722]
[1735160742562,0.12549,197.62,197.47,0.75918389]
[1735160742766,24.45852722,197.53,197.45,0.75936321]
[1735160742975,24.45852722,197.53,197.46,24.45852722]
[1735160743491,24.45852722,197.53,197.45,24.45852722]
[1735160743674,24.45852722,197.52,197.44,24.45852722]
[1735160743968,24.45852722,197.53,197.45,24.45852722]
[1735160744566,24.45852722,197.51,197.43,24.45852722]
[1735160744875,24.45852722,197.53,197.45,24.45852722]
[1735160745079,24.45852722,197.52,197.45,24.45852722]
[1735160745281,24.45852722,197.51,197.44,24.45852722]
[1735160746195,24.45852722,197.52,197.41,30.75957983]
[1735160746373,24.45852722,197.52,197.46,24.45852722]
[1735160746572,24.45852722,197.53,197.45,24.45852722]
[1735160747194,24.45852722,197.52,197.44,24.45852722]
[1735160748708,24.45852722,197.5,197.42,24.45852722]
[1735160748929,12.655,197.55,197.4,24.45852722]
[1735160748930,24.45852722,197.47,197.4,24.45852722]
[1735160749090,20.0,197.52,197.38,36.3366]
[1735160749091,24.45852722,197.46,197.39,24.45852722]
[1735160749291,24.45852722,197.45,197.38,30.79512722]
[1735160749619,24.45852722,197.46,197.38,30.79512722]
[1735160749997,24.45852722,197.47,197.4,24.45852722]
[1735160750198,24.45852722,197.46,197.38,30.79512722]
[1735160750398,24.45852722,197.44,197.36,24.45852722]
[1735160750616,24.45852722,197.43,197.36,24.45852722]
[1735160750804,24.45852722,197.45,197.38,24.45852722]
[1735160751004,44.45852722,197.46,197.38,24.45852722]
[1735160751205,24.45852722,197.45,197.37,24.45852722]
[1735160751400,24.45852722,197.44,197.37,24.45852722]
[1735160751606,24.45852722,197.45,197.37,24.45852722]
[1735160751915,24.45852722,197.45,197.33,6.3546]
[1735160751916,24.45852722,197.43,197.36,24.45852722]
[1735160752528,24.45852722,197.41,197.34,24.45852722]
[1735160753322,24.45852722,197.4,197.33,30.81312722]
[1735160753522,24.45852722,197.41,197.34,24.45852722]
[1735160753724,24.45852722,197.41,197.33,30.81312722]
[1735160754089,24.45852722,197.41,197.34,24.45852722]
[1735160754495,24.45852722,197.41,197.33,30.81312722]
[1735160754916,24.45852722,197.4,197.33,30.81312722]
[1735160755097,24.45852722,197.4,197.33,24.45852722]
[1735160755297,12.662,197.44,197.31,24.45852722]
[1735160755298,24.45852722,197.38,197.31,24.45852722]
[1735160755703,20.0,197.35,197.23,30.0]
[1735160756011,23.902374,197.38,197.25,24.45852722]
[1735160756012,24.45852722,197.32,197.25,24.45852722]
[1735160756215,24.45852722,197.31,197.24,24.45852722]
[1735160756399,24.45852722,197.3,197.22,6.3546]
[1735160756716,24.45852722,197.3,197.23,24.45852722]
[1735160756916,24.45852722,197.29,197.22,6.3546]
[1735160757427,48.23541122,197.28,197.21,24.45852722]
[1735160757805,24.45852722,197.29,197.21,24.45852722]
[1735160758006,24.45852722,197.29,197.22,24.45852722]
[1735160758227,24.45852722,197.28,197.2,24.45852722]
[1735160758424,12.6694,197.33,197.25,24.45852722]
[1735160758425,24.45852722,197.33,197.25,24.45852722]
[1735160758734,23.776884,197.29,197.17,6.3853]
[1735160759067,24.45852722,197.3,197.22,24.45852722]
[1735160759233,24.45852722,197.3,197.2,30.0]
[1735160759410,24.45852722,197.31,197.24,24.45852722]
[1735160759601,23.776884,197.33,197.25,24.45852722]
[1735160759602,24.45852722,197.33,197.25,24.45852722]
[1735160759801,24.45852722,197.33,197.26,24.45852722]
[1735160760502,24.45852722,197.37,197.29,24.45852722]
[1735160760722,24.45852722,197.37,197.3,24.45852722]
[1735160760901,24.45852722,197.34,197.27,44.45852722]
[1735160761307,24.45852722,197.35,197.27,44.45852722]
[1735160761611,24.45852722,197.36,197.29,24.45852722]
[1735160761811,24.45852722,197.38,197.3,24.45852722]
[1735160762005,24.45852722,197.38,197.31,24.45852722]
[1735160763138,24.45852722,197.38,197.3,24.45852722]
[1735160763536,24.45852722,197.4,197.3,30.0]
[1735160763711,24.45852722,197.42,197.34,24.45852722]
[1735160763913,24.45852722,197.41,197.34,24.45852722]
[1735160764120,24.45852722,197.38,197.29,30.0]
[1735160764315,24.45852722,197.44,197.36,24.45852722]
[1735160764627,24.45852722,197.45,197.38,24.45852722]
[1735160764826,24.45852722,197.47,197.4,24.45852722]
[1735160765122,24.45852722,197.5,197.43,24.45852722]
[1735160765522,24.45852722,197.5,197.42,24.45852722]
[1735160765725,24.45852722,197.49,197.42,24.45852722]
[1735160766743,24.45852722,197.48,197.41,24.45852722]
[1735160766942,1.6091,197.54,197.38,24.45852722]
[1735160766943,24.45852722,197.45,197.38,24.45852722]
[1735160767129,24.45852722,197.44,197.37,24.45852722]
[1735160767518,24.45852722,197.45,197.37,24.45852722]
[1735160767722,24.45852722,197.46,197.38,24.45852722]
[1735160768341,24.45852722,197.44,197.37,24.45852722]
[1735160768529,24.45852722,197.45,197.37,24.45852722]
[1735160768838,24.45852722,197.46,197.38,24.45852722]
[1735160769145,48.23541122,197.48,197.4,24.45852722]
[1735160769315,24.45852722,197.49,197.42,24.45852722]
[1735160769511,24.45852722,197.45,197.38,24.45852722]
[1735160769715,24.45852722,197.44,197.37,24.45852722]
[1735160770128,24.45852722,197.45,197.37,24.45852722]
[1735160770536,23.776884,197.44,197.37,24.45852722]
[1735160770743,24.45852722,197.44,197.36,24.45852722]
[1735160770932,24.45852722,197.45,197.37,24.45852722]
[1735160771131,24.45852722,197.46,197.38,24.45852722]
[1735160771657,20.270717,197.49,197.38,24.45852722]
[1735160771658,24.45852722,197.49,197.41,24.45852722]
[1735160771829,24.45852722,197.45,197.37,24.45852722]
[1735160772030,24.45852722,197.47,197.39,24.45852722]
[1735160772232,24.45852722,197.47,197.41,24.45852722]
[1735160772527,24.45852722,197.46,197.39,24.45852722]
[1735160772734,44.45852722,197.48,197.39,24.45852722]
[1735160773961,44.45852722,197.48,197.35,37.40393002]
[1735160773962,24.45852722,197.44,197.37,24.45852722]
[1735160776753,32.6595,197.48,197.33,24.45852722]
[1735160776754,24.45852722,197.42,197.33,24.45852722]
[1735160776929,56.436984,197.47,197.33,24.45852722]
[1735160777127,24.45852722,197.42,197.33,24.45852722]
[1735160777356,24.45852722,197.4,197.33,24.45852722]
[1735160777731,48.23541122,197.44,197.35,24.45852722]
[1735160777947,24.45852722,197.46,197.37,24.45852722]
[1735160778254,24.45852722,197.46,197.39,24.45852722]
[1735160778645,24.45852722,197.48,197.39,24.45852722]
[1735160781154,20.0,197.45,197.39,24.45852722]
[1735160781450,20.0,197.45,197.37,24.45852722]
[1735160781654,20.0,197.45,197.33,6.481]
[1735160781655,24.45852722,197.42,197.35,24.45852722]
[1735160781848,24.45852722,197.4,197.31,24.45852722]
[1735160782155,24.45852722,197.38,197.31,24.45852722]
[1735160782550,24.45852722,197.36,197.29,24.45852722]
[1735160783848,24.45852722,197.36,197.24,30.0]
[1735160784159,24.45852722,197.34,197.25,24.45852722]
[1735160784347,24.45852722,197.3,197.23,24.45852722]
[1735160784652,24.45852722,197.34,197.25,24.45852722]
[1735160784960,24.45852722,197.32,197.23,24.45852722]
[1735160785736,24.45852722,197.34,197.25,24.45852722]
[1735160786857,37.12702722,197.34,197.25,24.45852722]
[1735160787047,24.45852722,197.32,197.25,24.45852722]
[1735160787452,24.45852722,197.3,197.21,24.45852722]
[1735160787663,24.45852722,197.28,197.21,24.45852722]
[1735160787955,24.45852722,197.26,197.17,24.45852722]
[1735160788156,24.45852722,197.26,197.19,24.45852722]
[1735160788977,24.45852722,197.3,197.21,24.45852722]
[1735160789257,24.45852722,197.32,197.23,24.45852722]
[1735160789672,24.45852722,197.3,197.23,24.45852722]
[1735160789964,24.45852722,197.28,197.2,24.45852722]
[1735160790149,12.6685,197.34,197.22,24.45852722]
[1735160790350,24.45852722,197.3,197.22,24.45852722]
[1735160791467,24.45852722,197.28,197.2,24.45852722]
[1735160793755,24.45852722,197.3,197.22,24.45852722]
[1735160793949,24.45852722,197.32,197.24,24.45852722]
[1735160794145,24.45852722,197.34,197.26,24.45852722]
[1735160794787,24.45852722,197.38,197.3,24.45852722]
[1735160795865,24.45852722,197.4,197.32,24.45852722]
[1735160796246,24.45852722,197.42,197.34,24.45852722]
[1735160797371,24.45852722,197.42,197.33,30.0]
[1735160797557,24.45852722,197.44,197.36,24.45852722]
[1735160797750,24.45852722,197.46,197.38,24.45852722]
[1735160798168,24.45852722,197.44,197.36,24.45852722]
[1735160798381,24.45852722,197.4,197.33,24.45852722]
[1735160798582,24.45852722,197.36,197.29,24.45852722]
[1735160798747,24.45852722,197.35,197.27,31.01152722]
[1735160799071,24.45852722,197.34,197.27,6.553]
[1735160799368,24.45852722,197.35,197.27,31.01152722]
[1735160802370,24.45852722,197.37,197.29,24.45852722]
[1735160802759,24.45852722,197.35,197.27,31.01152722]
[1735160804378,24.45852722,197.35,197.27,24.45852722]
[1735160805976,24.45852722,197.35,197.24,8.1985]
[1735160805977,24.45852722,197.35,197.25,24.45852722]
[1735160806478,12.6666,197.37,197.25,24.45852722]
[1735160806479,24.45852722,197.33,197.25,24.45852722]
[1735160807481,24.45852722,197.31,197.24,8.1985]
[1735160807679,24.45852722,197.29,197.21,24.45852722]
[1735160807976,24.45852722,197.27,197.19,32.75602722]
[1735160809281,24.45852722,197.27,197.19,31.10532722]
[1735160809470,24.45852722,197.25,197.17,24.45852722]
[1735160810776,24.45852722,197.24,197.16,24.45852722]
[1735160811785,26.12122722,197.26,197.19,24.45852722]
[1735160811953,24.45852722,197.26,197.19,24.45852722]
[1735160812274,24.45852722,197.27,197.19,24.45852722]
[1735160813068,24.45852722,197.28,197.21,24.45852722]
[1735160813268,24.45852722,197.31,197.24,24.45852722]
[1735160813465,44.74561422,197.33,197.25,24.45852722]
[1735160813671,24.45852722,197.32,197.24,24.45852722]
[1735160815379,24.45852722,197.31,197.23,24.45852722]
[1735160815582,24.45852722,197.31,197.24,24.45852722]
[1735160820284,24.45852722,197.31,197.23,24.45852722]
[1735160821506,24.45852722,197.3,197.22,24.45852722]
[1735160821682,24.45852722,197.29,197.21,31.10532722]
[1735160821882,24.45852722,197.29,197.21,24.45852722]
[1735160822794,44.74447422,197.34,197.2,31.6507]
[1735160822795,24.45852722,197.31,197.2,31.6507]
[1735160822996,24.45852722,197.32,197.25,24.45852722]
[1735160823565,44.74447422,197.34,197.26,24.45852722]
[1735160823887,44.74447422,197.34,197.22,30.0]
[1735160823888,24.45852722,197.34,197.27,24.45852722]
[1735160824099,24.45852722,197.34,197.26,24.45852722]
[1735160824269,20.282968,197.34,197.31,15.42722209]
[1735160824467,15.42722209,197.38,197.31,15.42722209]
[1735160824792,15.42722209,197.38,197.3,15.42722209]
[1735160825002,1.5701,197.45,197.33,30.0]
[1735160825384,35.70040709,197.45,197.37,15.42722209]
[1735160825707,15.42722209,197.45,197.37,15.42722209]
[1735160825893,15.42722209,197.46,197.38,15.42722209]
[1735160826084,15.42722209,197.44,197.37,15.42722209]
[1735160826284,24.66060733,197.44,197.37,24.66060733]
[1735160826480,1.5701,197.5,197.33,30.75979979]
[1735160826481,12.6588,197.49,197.35,24.66060733]
[1735160826674,24.66060733,197.41,197.33,24.66060733]
[1735160826999,20.12549,197.41,197.3,24.66060733]
[1735160827301,24.66060733,197.36,197.28,6.4399]
[1735160827470,24.66060733,197.36,197.28,31.10050733]
[1735160827901,24.66060733,197.36,197.29,24.66060733]
[1735160828592,24.66060733,197.35,197.28,24.66060733]
[1735160829474,24.66060733,197.37,197.28,24.66060733]
[1735160830083,20.279619,197.38,197.32,24.66060733]
[1735160830488,24.66060733,197.41,197.32,24.66060733]
[1735160833905,24.66060733,197.37,197.3,24.66060733]
[1735160835192,24.66060733,197.39,197.3,24.66060733]
[1735160837403,20.27539,197.43,197.36,24.66060733]
[1735160837718,24.66060733,197.45,197.38,24.66060733]
[1735160839115,24.66060733,197.47,197.4,24.66060733]
[1735160839906,24.66060733,197.45,197.36,24.66060733]
[1735160840103,24.66060733,197.41,197.34,30.81630733]
[1735160840308,24.66060733,197.39,197.32,24.66060733]
[1735160841889,24.66060733,197.39,197.3,30.81630733]
[1735160842408,24.66060733,197.37,197.3,24.66060733]
[1735160842611,24.66060733,197.37,197.28,24.66060733]
[1735160845616,24.66060733,197.33,197.26,24.66060733]
[1735160845803,24.66060733,197.33,197.25,30.81630733]
[1735160846010,24.66060733,197.33,197.25,24.66060733]
[1735160846193,24.66060733,197.32,197.25,24.66060733]
[1735160847211,24.78609733,197.28,197.21,24.66060733]
[1735160847414,24.66060733,197.26,197.18,24.66060733]
[1735160847605,23.776884,197.25,197.18,24.66060733]
[1735160847924,23.776884,197.25,197.16,7.9969]
[1735160847925,23.776884,197.27,197.21,24.66060733]
[1735160848533,24.66060733,197.3,197.22,24.66060733]
[1735160848824,23.776884,197.32,197.26,24.66060733]
[1735160849034,48.43749133,197.32,197.24,24.66060733]
[1735160849798,20.287448,197.31,197.24,24.66060733]
[1735160850000,20.287448,197.31,197.25,24.66060733]
[1735160850703,24.66060733,197.29,197.21,24.66060733]
[1735160850910,24.66060733,197.27,197.19,24.66060733]
[1735160851319,24.66060733,197.29,197.21,24.66060733]
[1735160852415,24.66060733,197.27,197.19,24.66060733]
[1735160853826,23.776884,197.26,197.19,24.66060733]
[1735160854117,23.776884,197.26,197.11,30.0]
[1735160854118,24.66060733,197.25,197.17,24.66060733]
[1735160854323,23.776884,197.24,197.17,24.66060733]
[1735160855726,23.776884,197.24,197.18,24.66060733]
[1735160855940,1.5959,197.26,197.19,24.66060733]
[1735160856218,6.6228,197.27,197.2,24.66060733]
[1735160856219,23.776884,197.27,197.2,24.66060733]
[1735160856420,24.66060733,197.27,197.19,24.66060733]
[1735160858524,24.66060733,197.29,197.21,24.66060733]
[1735160860434,24.66060733,197.27,197.19,24.66060733]
[1735160861155,24.66060733,197.29,197.21,24.66060733]
[1735160861849,1.5959,197.32,197.25,24.66060733]
[1735160862017,24.66060733,197.33,197.25,24.66060733]
[1735160862339,35.71820162,197.32,197.24,15.43275462]
[1735160864174,44.97777714,197.32,197.24,24.69233014]
[1735160865238,14.2628,197.37,197.21,30.0]
[1735160865239,24.69233014,197.36,197.28,24.69233014]
[1735160865538,20.281587,197.35,197.28,24.69233014]
[1735160865719,24.69233014,197.36,197.28,24.69233014]
[1735160865915,44.97365214,197.36,197.28,24.69233014]
[1735160866716,44.97365214,197.36,197.26,24.69233014]
[1735160867212,44.97365214,197.36,197.28,24.69233014]
[1735160867523,24.69233014,197.4,197.32,24.69233014]
[1735160867728,20.278529,197.38,197.32,24.69233014]
[1735160867942,31.10423014,197.42,197.32,24.69233014]
[1735160868258,24.69233014,197.42,197.32,24.69233014]
[1735160868649,24.69233014,197.4,197.32,24.69233014]
[1735160869156,24.69233014,197.44,197.36,24.69233014]
[1735160871153,24.69233014,197.46,197.38,24.69233014]
[1735160871858,24.69233014,197.44,197.36,24.69233014]
[1735160872252,24.69233014,197.42,197.32,20.0]
[1735160872459,24.69233014,197.42,197.34,24.69233014]
[1735160873456,24.69233014,197.4,197.32,24.69233014]
[1735160878952,24.69233014,197.38,197.3,24.69233014]
[1735160881365,1.5185,197.39,197.3,24.69233014]
[1735160881564,6.4119,197.42,197.27,36.2671]
[1735160881565,31.10423014,197.42,197.34,24.69233014]
[1735160883159,24.69233014,197.42,197.34,24.69233014]
[1735160884048,24.69233014,197.4,197.32,24.69233014]
[1735160884247,15.42046339,197.4,197.32,15.42046339]
[1735160884469,15.42046339,197.38,197.3,15.42046339]
[1735160888470,15.42046339,197.34,197.22,6.5693]
[1735160888764,15.42046339,197.32,197.24,15.42046339]
[1735160890350,15.42046339,197.3,197.24,15.42046339]
[1735160890574,15.42046339,197.28,197.2,15.42046339]
[1735160890945,15.42046339,197.26,197.18,15.42046339]
[1735160892039,23.776884,197.25,197.18,15.42046339]
[1735160892844,15.42046339,197.26,197.18,15.42046339]
[1735160893167,15.42046339,197.26,197.19,15.42046339]
[1735160893379,39.19734739,197.27,197.19,15.42046339]
[1735160897144,0.12549,197.24,197.17,15.42046339]
[1735160897345,15.42046339,197.23,197.15,15.42046339]
[1735160897871,15.42046339,197.21,197.08,36.0545]
[1735160898174,15.42046339,197.21,197.12,15.42046339]
[1735160898551,15.42046339,197.21,197.14,15.42046339]
[1735160898749,15.42046339,197.22,197.14,15.42046339]
[1735160898950,15.42046339,197.21,197.14,15.42046339]
[1735160899148,15.42046339,197.21,197.13,15.42046339]
[1735160900780,15.42046339,197.22,197.14,15.42046339]
[1735160900960,1.54,197.25,197.18,15.42046339]
[1735160901161,6.2279,197.28,197.21,15.42046339]
[1735160901361,15.42046339,197.27,197.2,15.42046339]
[1735160901730,15.42046339,197.26,197.19,15.42046339]
[1735160901874,15.42046339,197.27,197.19,15.42046339]
[1735160903769,15.42046339,197.29,197.21,15.42046339]
[1735160907151,0.42046339,197.29,197.21,15.42046339]
[1735160908792,0.42046339,197.29,197.16,30.76053731]
[1735160908793,15.42046339,197.27,197.19,15.42046339]
[1735160912296,15.42046339,197.28,197.2,15.42046339]